[Event "RUS-ch Rapid Men 2018"]
[Site "Sochi"]
[Date "2018.10.05"]
[Round "1"]
[White "Rozum, Ivan"]
[Black "Sargsyan, Anatoly"]
[Result "1-0"]
[ECO "B31"]
[WhiteElo "2576"]
[BlackElo "1900"]
[Annotator "ChessBase"]
[PlyCount "73"]
[EventDate "2018.10.05"]
[EventType "swiss"]
[EventCountry "RUS"]
[SourceTitle "playchess.com"]
[Source "ChessBase"]
[SourceQuality "1"]
[TimeControl "900+10"]

1. e4 {[%emt 0:00:00]} c5 {[%emt 0:00:00]} 2. Nf3 {[%emt 0:00:00]} Nc6 {[%emt 0:00:00]} 3. Bb5 {[%emt 0:00:02]} g6 {[%emt 0:00:00]} 4. Bxc6 {[%emt 0:00:05]} dxc6 {[%emt 0:00:00]} 5. h3 {[%emt 0:00:06]} Bg7 {[%emt 0:00:00]} 6. d3 {[%emt 0:00:01]} Nf6 {[%emt 0:00:25]} 7. Nc3 {[%emt 0:00:05]} O-O {[%emt 0:00:03]} 8. Be3 {[%emt 0:00:02]} b6 {[%emt 0:00:03]} 9. Qd2 {[%emt 0:00:02]} Ne8 {[%emt 0:00:15]} 10. Bh6 {[%emt 0:00:04]} f6 {[%emt 0:00:09]} 11. O-O {[%emt 0:00:47]} e5 {[%emt 0:00:10]} 12. Nh2 {[%emt 0:00:33]} g5 {[%emt 0:01:04]} 13. Bxg7 {[%emt 0:00:11]} Nxg7 {[%emt 0:00:10]} 14. Ne2 {[%emt 0:00:40]} Ne6 {[%emt 0:00:54]} 15. Ng4 {[%emt 0:00:35]} h5 {[%emt 0:06:57]} 16. Ne3 {[%emt 0:00:35]} h4 {[%emt 0:03:22]} 17. g3 {[%emt 0:01:13]} Nd4 {[%emt 0:00:54]} 18. Kg2 {[%emt 0:00:08]} Kf7 {[%emt 0:01:21]} 19. gxh4 {[%emt 0:01:29]} Rh8 {[%emt 0:00:30]} 20. c3 {[%emt 0:05:21]} Nxe2 {[%emt 0:01:20]} 21. Qxe2 {[%emt 0:00:02]} Rxh4 {[%emt 0:00:00]} 22. Ng4 {[%emt 0:00:27]} Qh8 {[%emt 0:00:13]} 23. Rh1 {[%emt 0:00:14]} Be6 {[%emt 0:00:19]} 24. f3 {[%emt 0:00:05]} Rd8 {[%emt 0:00:04]} 25. Rad1 {[%emt 0:00:08]} a5 {[%emt 0:00:26]} 26. Qf2 {[%emt 0:01:02]} Bxa2 {[%emt 0:00:24]} 27. b4 {[%emt 0:00:23]} Bb3 {[%emt 0:00:07]} 28. Rb1 {[%emt 0:00:02]} a4 {[%emt 0:00:13]} 29. bxc5 {[%emt 0:00:02]} b5 {[%emt 0:00:13]} 30. d4 {[%emt 0:00:06]} exd4 31. cxd4 {[%emt 0:00:02]} Qe8 {[%emt 0:00:20]} 32. Rhe1 {[%emt 0:01:34]} Qd7 {[%emt 0:00:04]} 33. d5 {[%emt 0:00:01]} cxd5 {[%emt 0:00:08]} 34. e5 {[%emt 0:00:03]} Kg6 {[%emt 0:00:21]} 35. exf6 {[%emt 0:00:12]} Kh7 {[%emt 0:00:10]} 36. Re7+ {[%emt 0:00:03]} Qxe7 {[%emt 0:00:02]} 37. fxe7 {[%emt 0:00:01]} 1-0

[Event "RUS-ch Rapid Men 2018"]
[Site "Sochi"]
[Date "2018.10.05"]
[Round "1"]
[White "Panarin, Mikhail"]
[Black "Mrykhin, Igor"]
[Result "0-1"]
[ECO "A45"]
[WhiteElo "2562"]
[BlackElo "2117"]
[Annotator "ChessBase"]
[PlyCount "66"]
[EventDate "2018.10.05"]
[EventType "swiss"]
[EventCountry "RUS"]
[SourceTitle "playchess.com"]
[Source "ChessBase"]
[SourceQuality "1"]
[TimeControl "900+10"]

1. d4 {[%emt 0:00:00]} Nf6 {[%emt 0:00:00]} 2. g3 {[%emt 0:00:00]} c5 {[%emt 0:00:06]} 3. Nf3 {[%emt 0:00:00]} cxd4 {[%emt 0:00:14]} 4. Nxd4 {[%emt 0:00:01]} e5 {[%emt 0:00:25]} 5. Nb3 {[%emt 0:00:02]} d5 {[%emt 0:00:31]} 6. Bg2 {[%emt 0:00:03]} Nc6 {[%emt 0:00:36]} 7. O-O {[%emt 0:00:11]} Be6 {[%emt 0:00:30]} 8. Bg5 {[%emt 0:00:10]} Qd7 {[%emt 0:02:22]} 9. Bxf6 {[%emt 0:02:26]} gxf6 {[%emt 0:00:03]} 10. Nc3 {[%emt 0:00:01]} e4 {[%emt 0:03:10]} 11. e3 {[%emt 0:05:03]} h5 {[%emt 0:00:18]} 12. h4 {[%emt 0:03:36]} O-O-O {[%emt 0:00:53]} 13. Nb5 {[%emt 0:01:12]} Bg4 {[%emt 0:02:21]} 14. Qd2 {[%emt 0:00:24]} Ne5 {[%emt 0:01:11]} 15. N5d4 {[%emt 0:01:20]} Kb8 {[%emt 0:01:18]} 16. Na5 {[%emt 0:01:01]} Bc5 {[%emt 0:00:26]} 17. Kh1 {[%emt 0:00:25]} Bh3 {[%emt 0:00:44]} 18. Nab3 {[%emt 0:00:19]} Bb6 {[%emt 0:00:28]} 19. Kh2 {[%emt 0:00:23]} Bxg2 {[%emt 0:00:57]} 20. Kxg2 {[%emt 0:00:01]} Rhg8 {[%emt 0:00:16]} 21. Qe2 {[%emt 0:00:10]} Rg4 {[%emt 0:00:22]} 22. Rh1 {[%emt 0:00:02]} Rdg8 {[%emt 0:00:06]} 23. a4 {[%emt 0:00:11]} f5 {[%emt 0:00:06]} 24. Kf1 {[%emt 0:00:02]} Nc4 {[%emt 0:00:34]} 25. c3 {[%emt 0:00:21]} f4 {[%emt 0:00:28]} 26. exf4 {[%emt 0:00:58]} e3 {[%emt 0:00:05]} 27. a5 {[%emt 0:00:42]} Bxd4 {[%emt 0:00:03]} 28. Nxd4 {[%emt 0:00:06]} exf2 {[%emt 0:00:18]} 29. b3 {[%emt 0:00:22]} Nd6 {[%emt 0:00:12]} 30. Qe5 {[%emt 0:00:13]} Re8 {[%emt 0:00:14]} 31. Qxd5 {[%emt 0:00:06]} Rxg3 {[%emt 0:00:08]} 32. Ra2 {[%emt 0:00:14]} Re1+ {[%emt 0:00:12]} 33. Kxf2 {[%emt 0:00:01]} Ne4+ {[%emt 0:00:02]} 0-1

[Event "RUS-ch Rapid Men 2018"]
[Site "Sochi"]
[Date "2018.10.05"]
[Round "1"]
[White "Iljiushenok, Ilia"]
[Black "Esipenko, Aleksandr"]
[Result "1-0"]
[ECO "A13"]
[WhiteElo "2532"]
[BlackElo "2026"]
[Annotator "ChessBase"]
[PlyCount "107"]
[EventDate "2018.10.05"]
[EventType "swiss"]
[EventCountry "RUS"]
[SourceTitle "playchess.com"]
[Source "ChessBase"]
[SourceQuality "1"]
[TimeControl "900+10"]

1. Nf3 {[%emt 0:00:00]} d5 {[%emt 0:00:00]} 2. c4 {[%emt 0:00:00]} e6 {[%emt 0:00:01]} 3. g3 {[%emt 0:00:00]} Nf6 {[%emt 0:00:21]} 4. Bg2 {[%emt 0:00:00]} b6 {[%emt 0:00:13]} 5. O-O {[%emt 0:00:08]} Bb7 {[%emt 0:00:01]} 6. cxd5 {[%emt 0:00:31]} exd5 {[%emt 0:00:02]} 7. d4 {[%emt 0:00:08]} Bd6 {[%emt 0:00:02]} 8. Nc3 {[%emt 0:00:10]} O-O {[%emt 0:00:05]} 9. Nb5 {[%emt 0:00:12]} Be7 {[%emt 0:00:02]} 10. Bf4 {[%emt 0:00:06]} Na6 {[%emt 0:00:02]} 11. Ne5 {[%emt 0:01:37]} c6 {[%emt 0:01:04]} 12. Nc3 {[%emt 0:00:14]} Nc7 {[%emt 0:00:58]} 13. Rc1 {[%emt 0:01:11]} Ne6 {[%emt 0:01:15]} 14. Be3 {[%emt 0:00:02]} Nd7 {[%emt 0:01:11]} 15. Nd3 {[%emt 0:01:01]} Bd6 {[%emt 0:00:53]} 16. f4 {[%emt 0:01:00]} f5 {[%emt 0:01:47]} 17. Ne5 {[%emt 0:00:00]} Nxe5 {[%emt 0:01:04]} 18. fxe5 {[%emt 0:01:16]} Be7 {[%emt 0:00:05]} 19. Qd2 {[%emt 0:01:10]} Bg5 {[%emt 0:02:37]} 20. Bxg5 {[%emt 0:00:12]} Qxg5 {[%emt 0:00:08]} 21. e3 {[%emt 0:00:02]} Rae8 {[%emt 0:00:31]} 22. Rf2 {[%emt 0:00:03]} Qe7 {[%emt 0:00:22]} 23. a3 {[%emt 0:00:21]} Rf7 {[%emt 0:00:51]} 24. b4 {[%emt 0:00:34]} b5 {[%emt 0:00:10]} 25. Ne2 {[%emt 0:00:58]} Ra8 {[%emt 0:01:18]} 26. Rcf1 {[%emt 0:00:07]} g6 {[%emt 0:00:04]} 27. g4 {[%emt 0:02:07]} Ng7 {[%emt 0:00:28]} 28. Ng3 {[%emt 0:00:13]} Bc8 {[%emt 0:00:05]} 29. e4 {[%emt 0:00:18]} dxe4 {[%emt 0:01:11]} 30. Nxe4 {[%emt 0:00:01]} Be6 31. Nf6+ Kh8 {[%emt 0:02:12]} 32. Bxc6 {[%emt 0:00:18]} Rd8 {[%emt 0:00:01]} 33. g5 {[%emt 0:01:23]} Bc4 {[%emt 0:00:25]} 34. Rd1 {[%emt 0:00:01]} a5 {[%emt 0:00:34]} 35. Bg2 {[%emt 0:00:56]} axb4 {[%emt 0:00:19]} 36. axb4 {[%emt 0:00:05]} Qa7 {[%emt 0:00:07]} 37. d5 {[%emt 0:00:11]} Re7 {[%emt 0:00:07]} 38. Re1 {[%emt 0:00:26]} Ne6 {[%emt 0:00:24]} 39. h4 {[%emt 0:00:31]} Nd4 {[%emt 0:00:08]} 40. Qe3 {[%emt 0:00:13]} Nb3 {[%emt 0:00:18]} 41. Qxa7 {[%emt 0:00:11]} Rxa7 {[%emt 0:00:01]} 42. e6 {[%emt 0:00:56]} Re7 {[%emt 0:00:01]} 43. Rf4 {[%emt 0:00:02]} Kg7 {[%emt 0:00:13]} 44. Kh2 {[%emt 0:00:49]} Rd6 {[%emt 0:00:09]} 45. Kg3 {[%emt 0:00:35]} Rd8 {[%emt 0:00:10]} 46. Rd1 {[%emt 0:00:39]} Rd6 {[%emt 0:00:19]} 47. Bf3 {[%emt 0:00:00]} Kf8 {[%emt 0:00:03]} 48. h5 Kg7 49. hxg6 {[%emt 0:00:11]} Kxg6 {[%emt 0:00:02]} 50. Kh4 {[%emt 0:00:25]} Rd8 {[%emt 0:00:39]} 51. Bh5+ {[%emt 0:00:13]} Kg7 {[%emt 0:00:01]} 52. Bf7 {[%emt 0:00:02]} h6 {[%emt 0:00:14]} 53. Nh5+ {[%emt 0:00:06]} Kh8 {[%emt 0:00:14]} 54. g6 {[%emt 0:00:01]} 1-0

[Event "RUS-ch Rapid Men 2018"]
[Site "Sochi"]
[Date "2018.10.05"]
[Round "1"]
[White "Demidov, Mikhail"]
[Black "Potapenko, Denis"]
[Result "1-0"]
[ECO "A06"]
[WhiteElo "2514"]
[BlackElo "2158"]
[Annotator "ChessBase"]
[PlyCount "111"]
[EventDate "2018.10.05"]
[EventType "swiss"]
[EventCountry "RUS"]
[SourceTitle "playchess.com"]
[Source "ChessBase"]
[SourceQuality "1"]
[TimeControl "900+10"]

1. Nf3 {[%emt 0:00:00]} d5 {[%emt 0:00:00]} 2. g3 {[%emt 0:00:00]} Nc6 {[%emt 0:00:00]} 3. c4 {[%emt 0:00:16]} d4 {[%emt 0:00:05]} 4. Bg2 {[%emt 0:00:04]} e5 {[%emt 0:00:04]} 5. O-O {[%emt 0:00:15]} e4 {[%emt 0:01:43]} 6. Ne1 {[%emt 0:00:11]} Nf6 {[%emt 0:00:03]} 7. d3 {[%emt 0:00:07]} Bf5 {[%emt 0:00:42]} 8. Bg5 {[%emt 0:00:22]} exd3 {[%emt 0:03:35]} 9. exd3 {[%emt 0:00:06]} h6 {[%emt 0:00:40]} 10. Bxf6 {[%emt 0:00:12]} Qxf6 {[%emt 0:00:04]} 11. Nd2 {[%emt 0:00:06]} h5 {[%emt 0:02:29]} 12. h4 {[%emt 0:00:37]} Bg4 {[%emt 0:00:31]} 13. Nef3 {[%emt 0:00:41]} Qf5 {[%emt 0:01:07]} 14. Re1+ {[%emt 0:01:21]} Be7 {[%emt 0:00:24]} 15. Qb3 {[%emt 0:01:52]} Rb8 {[%emt 0:00:43]} 16. Qa3 {[%emt 0:02:17]} Kf8 {[%emt 0:00:58]} 17. Rxe7 {[%emt 0:01:08]} Nxe7 {[%emt 0:00:04]} 18. Re1 {[%emt 0:01:11]} Qf6 {[%emt 0:00:42]} 19. Qxa7 {[%emt 0:01:45]} Nc6 {[%emt 0:00:23]} 20. Qa3+ {[%emt 0:00:36]} Qd6 {[%emt 0:00:07]} 21. c5 {[%emt 0:00:05]} Qf6 {[%emt 0:00:50]} 22. b4 {[%emt 0:00:06]} Re8 {[%emt 0:00:31]} 23. Rxe8+ {[%emt 0:00:49]} Kxe8 {[%emt 0:00:02]} 24. b5 {[%emt 0:00:06]} Nd8 {[%emt 0:00:10]} 25. Ne4 {[%emt 0:00:08]} Qe7 {[%emt 0:00:22]} 26. Qb4 {[%emt 0:01:13]} Ne6 {[%emt 0:00:36]} 27. Nxd4 {[%emt 0:00:16]} f5 {[%emt 0:00:39]} 28. Nxe6 {[%emt 0:00:50]} fxe4 {[%emt 0:00:12]} 29. Nf4 {[%emt 0:00:01]} e3 {[%emt 0:00:25]} 30. fxe3 {[%emt 0:00:16]} Qxe3+ {[%emt 0:00:04]} 31. Kh2 {[%emt 0:00:02]} g5 {[%emt 0:00:33]} 32. hxg5 {[%emt 0:01:18]} h4 {[%emt 0:00:07]} 33. Qe4+ {[%emt 0:00:01]} Qxe4 {[%emt 0:00:03]} 34. Bxe4 {[%emt 0:00:02]} hxg3+ {[%emt 0:00:44]} 35. Kxg3 {[%emt 0:00:02]} Bd7 {[%emt 0:00:11]} 36. a4 {[%emt 0:00:09]} c6 {[%emt 0:00:16]} 37. d4 {[%emt 0:00:52]} Kf7 {[%emt 0:00:26]} 38. Ng6 {[%emt 0:00:13]} Rh3+ {[%emt 0:00:13]} 39. Kf4 {[%emt 0:00:02]} cxb5 {[%emt 0:00:19]} 40. Ne5+ {[%emt 0:00:45]} Ke7 {[%emt 0:00:04]} 41. axb5 {[%emt 0:00:44]} Bxb5 {[%emt 0:00:08]} 42. Bxb7 {[%emt 0:00:10]} Rh4+ {[%emt 0:00:06]} 43. Ke3 {[%emt 0:00:06]} Ke6 {[%emt 0:00:17]} 44. Bf3 {[%emt 0:00:19]} Kf5 {[%emt 0:00:14]} 45. g6 {[%emt 0:00:07]} Kf6 {[%emt 0:00:05]} 46. c6 {[%emt 0:00:20]} Rh8 {[%emt 0:00:17]} 47. Be4 {[%emt 0:00:13]} Re8 {[%emt 0:00:16]} 48. Kf4 {[%emt 0:00:03]} Ba6 {[%emt 0:00:04]} 49. Nd7+ {[%emt 0:00:18]} Kg7 {[%emt 0:00:05]} 50. d5 {[%emt 0:00:03]} Bc8 {[%emt 0:00:03]} 51. Nb6 {[%emt 0:00:11]} Rf8+ {[%emt 0:00:03]} 52. Ke5 {[%emt 0:00:02]} Re8+ {[%emt 0:00:05]} 53. Kd4 {[%emt 0:00:01]} Ba6 {[%emt 0:00:36]} 54. c7 {[%emt 0:00:05]} Kf6 {[%emt 0:00:05]} 55. d6 {[%emt 0:00:03]} Ke6 {[%emt 0:00:17]} 56. d7 {[%emt 0:00:03] Kd5+} 1-0

[Event "RUS-ch Rapid Men 2018"]
[Site "Sochi"]
[Date "2018.10.05"]
[Round "1"]
[White "Moiseenko, Vadim"]
[Black "Kryzhanovskiy, Mikhail"]
[Result "1-0"]
[ECO "A05"]
[WhiteElo "2495"]
[BlackElo "2008"]
[Annotator "ChessBase"]
[PlyCount "129"]
[EventDate "2018.10.05"]
[EventType "swiss"]
[EventCountry "RUS"]
[SourceTitle "playchess.com"]
[Source "ChessBase"]
[SourceQuality "1"]
[TimeControl "900+10"]

1. Nf3 {[%emt 0:00:00]} Nf6 {[%emt 0:00:00]} 2. g3 {[%emt 0:00:00]} d5 {[%emt 0:00:07]} 3. Bg2 {[%emt 0:00:00]} c5 {[%emt 0:00:29]} 4. O-O {[%emt 0:00:00]} Nc6 {[%emt 0:00:08]} 5. d4 {[%emt 0:00:00]} e6 {[%emt 0:00:05]} 6. c4 {[%emt 0:00:08]} cxd4 {[%emt 0:02:55]} 7. Nxd4 {[%emt 0:00:07]} Bc5 {[%emt 0:00:15]} 8. Nxc6 {[%emt 0:00:35]} bxc6 {[%emt 0:00:03]} 9. Qc2 {[%emt 0:00:02]} Qe7 {[%emt 0:03:55]} 10. Nc3 {[%emt 0:01:37]} O-O {[%emt 0:00:13]} 11. b3 {[%emt 0:00:41]} Bb7 {[%emt 0:01:28]} 12. Bb2 {[%emt 0:00:27]} Rac8 {[%emt 0:00:44]} 13. e3 {[%emt 0:00:20]} a5 {[%emt 0:00:33]} 14. Na4 {[%emt 0:01:02]} Bd6 {[%emt 0:01:17]} 15. Rac1 {[%emt 0:00:14]} Ba3 {[%emt 0:01:20]} 16. Rfd1 {[%emt 0:01:19]} Bxb2 {[%emt 0:00:09]} 17. Qxb2 {[%emt 0:00:03]} Rfd8 {[%emt 0:01:02]} 18. Rd2 {[%emt 0:02:32]} e5 {[%emt 0:01:01]} 19. Rcd1 {[%emt 0:01:09]} e4 {[%emt 0:00:03]} 20. Bh3 {[%emt 0:01:02]} Rb8 {[%emt 0:00:01]} 21. Qc3 {[%emt 0:00:38]} Ra8 {[%emt 0:00:45]} 22. Rc1 {[%emt 0:00:55]} Ra7 {[%emt 0:00:28]} 23. cxd5 {[%emt 0:00:16]} cxd5 {[%emt 0:00:06]} 24. Qc7 {[%emt 0:00:09]} Ba6 {[%emt 0:00:14]} 25. Qxe7 {[%emt 0:00:02]} Rxe7 {[%emt 0:00:02]} 26. Rc5 {[%emt 0:00:01]} g5 {[%emt 0:01:30]} 27. Rxa5 {[%emt 0:00:03]} Bd3 {[%emt 0:00:06]} 28. Nc5 {[%emt 0:00:12]} g4 {[%emt 0:00:22]} 29. Nxd3 {[%emt 0:00:30]} exd3 {[%emt 0:00:04]} 30. Bf1 {[%emt 0:00:11]} Rc7 {[%emt 0:00:08]} 31. Bxd3 {[%emt 0:00:19]} Rc1+ {[%emt 0:00:03]} 32. Kg2 {[%emt 0:00:00]} Rdc8 {[%emt 0:00:01]} 33. Bf5 {[%emt 0:00:13]} R8c7 {[%emt 0:00:05]} 34. Ra4 {[%emt 0:00:13]} h5 {[%emt 0:00:05]} 35. h3 {[%emt 0:00:03]} gxh3+ {[%emt 0:00:17]} 36. Bxh3 {[%emt 0:00:01]} Ne4 {[%emt 0:00:30]} 37. Rxd5 {[%emt 0:00:09]} Nc3 {[%emt 0:00:16]} 38. Rg5+ {[%emt 0:00:09]} Kf8 {[%emt 0:00:03]} 39. Ra8+ {[%emt 0:00:03]} Ke7 {[%emt 0:00:01]} 40. Rxh5 {[%emt 0:00:22]} Rc2 {[%emt 0:00:02]} 41. Re5+ {[%emt 0:00:10]} Kd6 {[%emt 0:00:04]} 42. Rf5 {[%emt 0:00:09]} Nxa2 {[%emt 0:00:03]} 43. Ra6+ {[%emt 0:00:38]} Ke7 {[%emt 0:00:03]} 44. Re5+ {[%emt 0:00:01]} Kf8 {[%emt 0:00:05]} 45. Rb6 {[%emt 0:01:08]} Rb2 {[%emt 0:00:05]} 46. Bf5 {[%emt 0:00:12]} Nc1 {[%emt 0:00:04]} 47. b4 {[%emt 0:00:03]} Ra7 {[%emt 0:00:14]} 48. Rc5 {[%emt 0:00:08]} Nb3 {[%emt 0:00:05]} 49. Rc2 {[%emt 0:00:04]} Rxc2 {[%emt 0:00:35]} 50. Bxc2 {[%emt 0:00:04]} Nd2 {[%emt 0:00:04]} 51. Rb8+ {[%emt 0:00:06]} Kg7 {[%emt 0:00:02]} 52. b5 {[%emt 0:00:02]} Ra2 {[%emt 0:00:04]} 53. Bd3 {[%emt 0:00:02]} Rb2 {[%emt 0:00:10]} 54. b6 {[%emt 0:00:04]} Nb3 {[%emt 0:00:05]} 55. Bc4 {[%emt 0:00:29]} Nc5 {[%emt 0:00:04]} 56. Bd5 {[%emt 0:00:32]} Nd3 {[%emt 0:00:08]} 57. b7 {[%emt 0:00:06]} Rxf2+ {[%emt 0:00:04]} 58. Kh3 {[%emt 0:00:02]} Rb2 {[%emt 0:00:35]} 59. Rd8 {[%emt 0:00:01]} Nf2+ {[%emt 0:00:12]} 60. Kh4 {[%emt 0:00:12]} Rb4+ {[%emt 0:00:02]} 61. e4 {[%emt 0:00:04]} Rb6 {[%emt 0:00:24]} 62. b8=Q {[%emt 0:00:44]} Rh6+ {[%emt 0:00:04]} 63. Kg5 {[%emt 0:00:01]} Nh3+ {[%emt 0:00:54]} 64. Kg4 {[%emt 0:00:01]} f5+ {[%emt 0:00:00]} 65. exf5 {[%emt 0:00:07]} 1-0

[Event "RUS-ch Rapid Men 2018"]
[Site "Sochi"]
[Date "2018.10.05"]
[Round "1"]
[White "Shkurkin, Andrey"]
[Black "Pridorozhni, Aleksei"]
[Result "0-1"]
[ECO "A42"]
[WhiteElo "2250"]
[BlackElo "2573"]
[Annotator "ChessBase"]
[PlyCount "126"]
[EventDate "2018.10.05"]
[EventType "swiss"]
[EventCountry "RUS"]
[SourceTitle "playchess.com"]
[Source "ChessBase"]
[SourceQuality "1"]
[TimeControl "900+10"]

1. d4 {[%emt 0:00:00]} d6 {[%emt 0:00:00]} 2. e4 {[%emt 0:00:00]} g6 {[%emt 0:00:00]} 3. c4 {[%emt 0:00:13]} Bg7 {[%emt 0:00:00]} 4. Nc3 {[%emt 0:00:12]} Nc6 {[%emt 0:00:41]} 5. Be3 {[%emt 0:00:08]} Nf6 {[%emt 0:00:09]} 6. Be2 {[%emt 0:02:08]} O-O {[%emt 0:00:06]} 7. d5 {[%emt 0:00:07]} Nb8 {[%emt 0:00:03]} 8. Qd2 {[%emt 0:01:36]} e5 {[%emt 0:00:45]} 9. h4 {[%emt 0:01:20]} h5 {[%emt 0:00:09]} 10. f3 {[%emt 0:00:33]} c6 {[%emt 0:00:21]} 11. Nh3 {[%emt 0:01:21]} cxd5 {[%emt 0:00:04]} 12. cxd5 {[%emt 0:00:30]} a6 {[%emt 0:00:03]} 13. O-O-O {[%emt 0:00:52]} b5 {[%emt 0:00:06]} 14. Kb1 {[%emt 0:00:10]} Nbd7 {[%emt 0:00:04]} 15. Nf2 {[%emt 0:01:22]} Nc5 {[%emt 0:00:18]} 16. Rc1 {[%emt 0:00:55]} Bb7 {[%emt 0:00:12]} 17. g4 {[%emt 0:00:39]} hxg4 {[%emt 0:00:18]} 18. Bg5 {[%emt 0:02:01]} b4 {[%emt 0:02:52]} 19. Ncd1 {[%emt 0:00:15]} Bc8 {[%emt 0:01:48]} 20. Ne3 {[%emt 0:00:38]} g3 {[%emt 0:00:07]} 21. Nfg4 {[%emt 0:00:21]} Nfxe4 {[%emt 0:00:09]} 22. fxe4 {[%emt 0:00:32]} Nxe4 {[%emt 0:00:03]} 23. Bxd8 {[%emt 0:01:30]} Nxd2+ {[%emt 0:00:03]} 24. Kc2 {[%emt 0:00:02]} Rxd8 {[%emt 0:00:07]} 25. Kxd2 {[%emt 0:00:07]} f5 {[%emt 0:00:03]} 26. h5 {[%emt 0:00:46]} gxh5 {[%emt 0:00:03]} 27. Rxh5 {[%emt 0:00:12]} fxg4 {[%emt 0:00:05]} 28. Nxg4 {[%emt 0:00:34]} Rf8 {[%emt 0:00:33]} 29. Rg1 {[%emt 0:00:33]} Rf5 {[%emt 0:00:04]} 30. Nh6+ {[%emt 0:00:10]} Bxh6+ {[%emt 0:00:03]} 31. Rxh6 {[%emt 0:00:04]} Rg5 {[%emt 0:00:03]} 32. Bf3 {[%emt 0:00:18]} Bf5 {[%emt 0:00:16]} 33. Rxd6 {[%emt 0:00:05]} Rc8 {[%emt 0:00:56]} 34. Rc6 {[%emt 0:00:09]} Rd8 {[%emt 0:00:01]} 35. Ke3 {[%emt 0:00:10]} Rg7 {[%emt 0:00:49]} 36. Be4 {[%emt 0:00:12]} Bc8 {[%emt 0:01:02]} 37. Rb6 {[%emt 0:00:12]} Bb7 {[%emt 0:00:34]} 38. Rxb7 {[%emt 0:00:10]} Rxb7 {[%emt 0:00:04]} 39. Rxg3+ {[%emt 0:00:03]} Rg7 {[%emt 0:00:04]} 40. Rh3 {[%emt 0:00:12]} Rg1 {[%emt 0:01:17]} 41. Rh5 {[%emt 0:00:14]} Re1+ {[%emt 0:04:04]} 42. Kd3 {[%emt 0:00:10]} Re8 {[%emt 0:00:33]} 43. Rg5+ {[%emt 0:00:11]} Kf8 {[%emt 0:00:03]} 44. Rf5+ {[%emt 0:00:12]} Kg7 {[%emt 0:00:04]} 45. Rg5+ {[%emt 0:00:06]} Kh6 {[%emt 0:00:21]} 46. Rg6+ {[%emt 0:00:04]} Kh5 {[%emt 0:00:01]} 47. Rxa6 {[%emt 0:00:13]} Rg8 {[%emt 0:00:02]} 48. Bf5 {[%emt 0:00:16]} Rf8 {[%emt 0:00:53]} 49. Be6 {[%emt 0:00:08]} e4+ {[%emt 0:00:31]} 50. Kd2 {[%emt 0:00:02]} Rff1 {[%emt 0:00:19]} 51. Bd7 {[%emt 0:00:21]} e3+ {[%emt 0:00:07]} 52. Kd3 {[%emt 0:00:06]} Rf2 {[%emt 0:00:09]} 53. Re6 {[%emt 0:00:09]} Rd2+ {[%emt 0:00:06]} 54. Kc4 {[%emt 0:00:02]} e2 {[%emt 0:00:09]} 55. Kxb4 {[%emt 0:00:18]} Rc1 {[%emt 0:00:16]} 56. b3 {[%emt 0:00:11]} Rxa2 {[%emt 0:00:13]} 57. Kb5 {[%emt 0:00:11]} Rd2 {[%emt 0:00:13]} 58. Bc6 {[%emt 0:00:09]} e1=Q {[%emt 0:00:17]} 59. Rxe1 {[%emt 0:00:02]} Rxe1 {[%emt 0:00:02]} 60. b4 {[%emt 0:00:19]} Rb1 {[%emt 0:00:12]} 61. Kc5 {[%emt 0:00:10]} Rc2+ {[%emt 0:00:05]} 62. Kb6 {[%emt 0:00:08]} Rxb4+ {[%emt 0:00:06]} 63. Kc7 {[%emt 0:00:02]} Kg5 {[%emt 0:00:16]} 0-1

[Event "RUS-ch Rapid Men 2018"]
[Site "Sochi"]
[Date "2018.10.05"]
[Round "1"]
[White "Dudin, Gleb"]
[Black "Tomashevsky, Evgeny"]
[Result "1/2-1/2"]
[ECO "A21"]
[WhiteElo "2208"]
[BlackElo "2702"]
[Annotator "ChessBase"]
[PlyCount "110"]
[EventDate "2018.10.05"]
[EventType "swiss"]
[EventCountry "RUS"]
[SourceTitle "playchess.com"]
[Source "ChessBase"]
[SourceQuality "1"]
[TimeControl "900+10"]

1. c4 {[%emt 0:00:00]} e5 {[%emt 0:00:06]} 2. Nc3 {[%emt 0:00:00]} Bb4 {[%emt 0:00:20]} 3. g3 {[%emt 0:00:29]} Bxc3 {[%emt 0:00:26]} 4. dxc3 {[%emt 0:00:28]} d6 {[%emt 0:00:24]} 5. Bg2 {[%emt 0:00:13]} Nc6 {[%emt 0:00:46]} 6. Nf3 {[%emt 0:00:40]} h6 {[%emt 0:00:20]} 7. O-O {[%emt 0:03:26]} Be6 {[%emt 0:00:03]} 8. Nd2 {[%emt 0:00:35]} Qd7 {[%emt 0:00:18]} 9. Re1 {[%emt 0:00:05]} Bh3 {[%emt 0:01:27]} 10. Bh1 {[%emt 0:01:04]} f5 {[%emt 0:00:07]} 11. Nf1 {[%emt 0:03:56]} Nf6 {[%emt 0:01:14]} 12. Ne3 {[%emt 0:00:37]} O-O {[%emt 0:00:32]} 13. c5 {[%emt 0:00:56]} f4 {[%emt 0:00:13]} 14. Nd5 {[%emt 0:00:52]} Kh8 {[%emt 0:00:20]} 15. cxd6 {[%emt 0:01:33]} cxd6 {[%emt 0:00:57]} 16. b3 {[%emt 0:00:19]} Qf5 {[%emt 0:00:43]} 17. e4 {[%emt 0:01:20]} Qg6 {[%emt 0:00:57]} 18. Bxf4 {[%emt 0:00:12]} Bg4 {[%emt 0:01:03]} 19. f3 {[%emt 0:00:51]} Nxd5 {[%emt 0:00:04]} 20. exd5 {[%emt 0:00:08]} exf4 {[%emt 0:00:12]} 21. dxc6 {[%emt 0:00:08]} Bc8 {[%emt 0:00:03]} 22. g4 {[%emt 0:00:25]} bxc6 {[%emt 0:00:33]} 23. Bg2 {[%emt 0:00:07]} c5 {[%emt 0:02:36]} 24. Qd5 {[%emt 0:00:15]} Rb8 {[%emt 0:00:01]} 25. Rad1 {[%emt 0:00:10]} Rb6 {[%emt 0:01:21]} 26. Re7 {[%emt 0:00:06]} Qf6 {[%emt 0:01:09]} 27. Rde1 {[%emt 0:00:01]} Qxc3 {[%emt 0:00:01]} 28. Re8 Qf6 29. Qa8 {[%emt 0:00:07]} Qd4+ {[%emt 0:02:22]} 30. Kh1 {[%emt 0:00:01]} Rxe8 {[%emt 0:00:01]} 31. Rxe8+ {[%emt 0:00:01]} Kh7 {[%emt 0:00:00]} 32. h3 {[%emt 0:00:45]} Bd7 {[%emt 0:00:10]} 33. Rh8+ {[%emt 0:00:22]} Kg6 {[%emt 0:00:01]} 34. Qxa7 {[%emt 0:00:14]} Bc6 {[%emt 0:01:39]} 35. Qxb6 {[%emt 0:00:07]} Qd1+ {[%emt 0:00:01]} 36. Kh2 {[%emt 0:00:05]} Bxf3 {[%emt 0:00:01]} 37. Bxf3 {[%emt 0:00:11]} Qd2+ {[%emt 0:00:01]} 38. Kg1 {[%emt 0:00:17]} Qe1+ {[%emt 0:00:05]} 39. Kg2 {[%emt 0:00:13]} Qg3+ {[%emt 0:00:02]} 40. Kf1 {[%emt 0:00:04]} Qxf3+ {[%emt 0:00:01]} 41. Ke1 {[%emt 0:00:01]} Qe3+ {[%emt 0:00:02]} 42. Kd1 {[%emt 0:00:03]} Qd3+ {[%emt 0:00:01]} 43. Kc1 {[%emt 0:00:19]} f3 {[%emt 0:00:51]} 44. Qd8 {[%emt 0:00:21]} f2 {[%emt 0:00:28]} 45. Qe8+ {[%emt 0:00:02]} Kg5 {[%emt 0:00:01]} 46. Qe7+ {[%emt 0:00:07]} Kf4 {[%emt 0:00:01]} 47. Rf8+ {[%emt 0:00:20]} Kg3 {[%emt 0:00:02]} 48. Qf7 {[%emt 0:00:09]} Qc3+ {[%emt 0:00:27]} 49. Kb1 {[%emt 0:00:06]} Qd3+ {[%emt 0:00:13]} 50. Kb2 {[%emt 0:00:15]} Qd2+ {[%emt 0:00:05]} 51. Ka3 {[%emt 0:00:10]} Qb4+ {[%emt 0:00:24]} 52. Kb2 {[%emt 0:00:14]} Qd2+ {[%emt 0:00:09]} 53. Ka3 {[%emt 0:00:00]} Qb4+ {[%emt 0:00:13]} 54. Kb2 {[%emt 0:00:00]} Qd4+ {[%emt 0:00:11]} 55. Ka3 {[%emt 0:00:04]} Qb4+ {[%emt 0:00:11]} 1/2-1/2